Cogmind - Beta 16 @@@ ROGUE MODE // 2025.12.05 @ 12:06:00 Player: souux Result: Destroyed by H-77 Assassin with High-powered Shotgun Performance ------------- Evolutions (7) 3500 Regions Visited (18) 3600 Robots Destroyed (245) 1225 Value Destroyed (7783) 7783 Prototype IDs (22) 440 Alien Tech Used (0) 0 Bonus (987) 987 TOTAL SCORE: 17535 Bonus ------- High Alert Combat Kills 159 Follower Combat Kills 228 Met Imprinter 300 Was Imprinted 300 Cogmind --------- Core Integrity 0/1300 Matter 163/300 Energy 109/700 System Corruption 27% Temperature Cool (0) Movement Treading (170) Location -3/Research Parts ------- > --- POWER (2) -------- (None) > --- PROPULSION (6) --- Armored Medium Treads > --- UTILITY (10) ----- Experimental Energy Well Advanced Visual Processing Unit Advanced Signal Interpreter > --- WEAPON (3) ------- (None) > --- INVENTORY (5) ---- Medium Storage Unit Advanced Transmission Jammer Hypervelocity Coil Gun Hypervelocity Coil Gun Ionic Axe Peak State ------------ > --- POWER ------------ Micro Antimatter Reactor Micro Antimatter Reactor > --- PROPULSION ------- Advanced Medium Treads Advanced Medium Treads Armored Heavy Treads Advanced Heavy Treads > --- UTILITY ---------- Advanced Heat Sink Advanced Heat Sink Advanced Heat Sink Huge Storage Unit Experimental Energy Well Advanced Visual Processing Unit Enhanced Optical Array Advanced Signal Interpreter Advanced Transmission Jammer Improved Cloaking Device > --- WEAPON ----------- Cooled Plasma Rifle Nova Cannon Nova Cannon > --- INVENTORY -------- Neutrino Core Advanced Medium Treads Advanced Medium Treads Advanced Medium Treads Advanced Medium Treads Biometal Medium Treads Armored Heavy Treads Compact Wheel Compact Wheel Medium Storage Unit Beamcaster Heavy Beamcaster Ionic Axe [Rating: 144] Favorites ----------- Power Micro Nuclear Core Engine Improved Ion Engine Power Core Micro Nuclear Core Reactor Micro Antimatter Reactor Propulsion Light Treads Treads Light Treads Leg Armored Leg Wheel Wheel Hover Unit Improved Gyrokinetic Inverter Flight Unit Improved VTOL Module Utility Huge Storage Unit Device Seismic Detector Storage Huge Storage Unit Processor Enhanced Optical Array Hackware Hacking Suite Protection Improved Medium Armor Plating Weapon Spread Laser Energy Gun Spread Laser Energy Cannon Heavy Particle Cannon Ballistic Gun Gauss Rifle Ballistic Cannon Advanced Assault Cannon Launcher Heavy Rocket Launcher Impact Weapon Heavy Hammer Slashing Weapon Power Sword Build | -11 -10 -9 -9 -8 -7 -7 -7 -6 -6 -6 -6 -5 -5 -5 -5 -4 -4 -3 ------- Run | Yrd Mat Mat Min Mat Fac Was Fac Fac Low Low Zio Pro Fac Upp Upp Fac Ext Res Slots Evolved 14 | . . 2 . 2 2 . . 2 . . . . 2 . . 2 . 2 Power 1 | . . . . . . . . 1 . . . . . . . . . . Propulsion 4 | . . 1 . 1 . . . 1 . . . . 1 . . . . . Utility 8 | . . 1 . 1 2 . . . . . . . 1 . . 1 . 2 Weapon 1 | . . . . . . . . . . . . . . . . 1 . . Parts Attached 243 | 7 20 35 . 31 38 3 10 11 2 1 2 . 6 . 2 15 7 53 Power 25 | 1 3 4 . 3 3 1 . 2 1 . . . 1 . . 1 . 5 Engine 13 | 1 3 3 . 3 2 . . 1 . . . . . . . . . . Core 7 | . . 1 . . 1 1 . 1 1 . . . 1 . . . . 1 Reactor 5 | . . . . . . . . . . . . . . . . 1 . 4 Propulsion 87 | 2 7 17 . 11 14 . 2 1 1 . . . 2 . 1 6 6 17 Treads 44 | . 2 7 . 6 9 . . . 1 . . . 1 . . 4 2 12 Leg 7 | . 2 . . . . . . 1 . . . . . . 1 . 3 . Wheel 29 | 2 3 10 . 4 4 . . . . . . . . . . 1 . 5 Hover 2 | . . . . 1 . . . . . . . . . . . . 1 . Flight 5 | . . . . . 1 . 2 . . . . . 1 . . 1 . . Utility 85 | 2 4 9 . 10 13 2 5 6 . 1 2 . 3 . 1 7 . 20 Device 46 | 1 2 3 . 4 8 1 3 2 . . 1 . 2 . 1 3 . 15 Storage 9 | 1 1 2 . . . . . 1 . . . . . . . 1 . 3 Processor 11 | . . . . 1 2 . 1 2 . 1 1 . . . . 2 . 1 Hackware 6 | . . . . 1 2 . 1 1 . . . . 1 . . . . . Protection 13 | . 1 4 . 4 1 1 . . . . . . . . . 1 . 1 Artifact . | . . . . . . . . . . . . . . . . . . . Weapon 46 | 2 6 5 . 7 8 . 3 2 . . . . . . . 1 1 11 Energy Gun 19 | 1 5 4 . 4 2 . . . . . . . . . . . . 3 Energy Cannon 10 | . . . . 2 3 . . . . . . . . . . 1 . 4 Ballistic Gun 6 | 1 . . . . 1 . 1 . . . . . . . . . . 3 Ballistic Cannon 1 | . . . . . . . 1 . . . . . . . . . . . Launcher 6 | . 1 1 . 1 1 . 1 1 . . . . . . . . . . Special Weapon . | . . . . . . . . . . . . . . . . . . . Impact Weapon 1 | . . . . . 1 . . . . . . . . . . . . . Slashing Weapon 3 | . . . . . . . . 1 . . . . . . . . 1 1 Piercing Weapon . | . . . . . . . . . . . . . . . . . . . Special Melee Weapon . | . . . . . . . . . . . . . . . . . . . Unidentified Prototypes 16 | . . . . 6 3 . . . . . 1 . 1 . . . . 5 Parts Lost 93 | . 1 . . 2 11 7 1 . . . . . 7 5 . 3 16 40 Power 8 | . . . . . . . . . . . . . 2 1 . . . 5 Propulsion 38 | . . . . 1 3 3 . . . . . . 2 3 . . 10 16 Utility 30 | . . . . 1 4 1 1 . . . . . 3 1 . 2 5 12 Weapon 17 | . 1 . . . 4 3 . . . . . . . . . 1 1 7 Highest Loss Streak 23 | . 1 . . 1 4 3 1 . . . . . 2 4 . 3 7 23 To Critical Strikes 4 | . . . . . . 1 . . . . . . . . . . 1 2 Average Backups 14 | 5 9 20 25 24 23 20 3 3 4 4 5 5 4 4 4 3 4 5 Power 1 | . 1 1 2 . 1 1 . 1 2 1 1 1 . . . . . . Propulsion 6 | 3 4 9 15 13 12 11 . . . . . . . 1 1 . . 2 Utility 3 | . 2 4 5 5 5 5 2 2 1 2 3 3 2 2 2 2 1 . Weapon 2 | . 2 4 2 2 2 1 . . 1 1 1 1 1 1 1 . 1 1 Tool/Special . | . . . . . . . . . . . . . . . . . . . Unused Backups 38 | . . 4 . 9 4 10 1 3 . 1 1 . . . . . 2 3 Power 5 | . . 1 . 1 . 1 1 . . . . . . . . . 1 . Propulsion 16 | . . 1 . 7 3 4 . . . . . . . . . . . 1 Utility 10 | . . . . . 1 3 . 3 . 1 1 . . . . . 1 . Weapon 6 | . . 2 . 1 . 1 . . . . . . . . . . . 2 Tool/Special 1 | . . . . . . 1 . . . . . . . . . . . . Average Slot Usage (%) 87 | . 100 99 100 99 99 78 67 85 86 86 86 86 82 73 55 79 46 59 Engine 4 | . 14 7 . 8 4 4 . . . . . . . . . . . . Core 2 | . . 3 11 . 2 . 7 7 6 6 6 6 3 5 . . . . Treads 11 | . 4 7 . 17 10 . 6 6 11 13 13 13 10 4 . 20 10 10 Wheel 12 | . 22 25 33 18 19 24 . . . . . . . . . 4 2 2 Flight 4 | . . . . . . . 22 20 20 20 20 20 22 21 11 . . . Device 12 | . 13 17 11 11 12 17 12 13 13 8 13 13 13 10 10 9 3 12 Storage 5 | . 14 11 11 9 7 6 . . . . . . . . . 1 2 4 Processor 11 | . . . . 6 14 6 3 18 20 25 26 26 23 23 23 24 19 10 Hackware 1 | . . . . . 4 . 2 6 6 4 . . 1 . . . . . Protection 3 | . . 4 11 8 5 4 . . . . . . . . . 2 . 1 Energy Gun 7 | . 26 21 22 14 . 4 . . . . . . . . . . . 4 Energy Cannon 2 | . . . . 3 10 2 . . . . . . . . . 3 1 2 Slashing Weapon 1 | . . . . . . . . . 6 6 6 6 5 5 5 4 . 1 Peak Build Rating 144 | 7 10 21 21 32 43 43 43 60 59 58 63 60 67 59 47 89 69 144 Average Rating 43 | 5 7 15 21 27 37 33 32 49 54 53 58 60 61 56 45 79 45 91 On Entrance 35 | . 7 10 21 21 30 38 10 39 54 55 53 60 60 59 34 47 69 13 Avg Prop Armor Cover (%) 22 | . 11 11 . 12 12 . 16 23 28 28 26 26 25 19 17 27 33 24 Naked Turns 1 | . . . . . . 1 . . . . . . . . . . . . Heaviest Build 130 | 12 32 99 97 109 118 119 16 26 11 17 11 11 13 10 6 85 65 130 Greatest Support 190 | 26 40 63 36 83 80 54 16 16 16 16 16 16 22 22 11 108 46 190 Greatest Overweight (x) 9 | . 1 3 2 6 9 5 . 1 . 1 . . . . . 2 2 6 Average Overweight (x) . | . . 1 2 2 2 1 . . . . . . . . . . . . Largest Inventory Capacity 25 | 8 15 25 25 25 25 25 5 10 5 5 5 5 5 5 5 20 20 25 Average Capacity 16 | 7 10 20 25 25 25 22 5 5 5 5 5 5 5 5 5 9 12 10 Most Carried 25 | 8 15 25 25 25 25 25 5 5 5 5 5 5 5 5 5 7 6 17 Average Carried 14 | 5 9 20 25 24 23 20 3 4 4 4 4 5 4 5 5 4 5 5 Final Capacity 25 | 8 15 25 25 25 25 5 5 5 5 5 5 5 5 5 5 20 5 5 Final Carried 25 | 8 15 25 25 25 25 4 5 4 5 5 5 5 5 5 5 6 5 5 Class Distribution -------------------- 41% | Mutant 22% | Scavenger-Mutant 10% | Scout 6% | Assassin 5% | Ninja 4% | Scavenger-Tank 4% | Scientist-Mutant Dominant Class ---------------- Mutant | -10/Materials Mutant | -9/Materials Mutant | -9/Mines Mutant | -8/Materials Mutant | -7/Factory Scavenger-Mutant | -7/Waste Mutant | -7/Factory Scout | -6/Factory Ninja | -6/Lower Caves Scout | -6/Lower Caves Scout | -6/Zion Scout | -5/Proximity Caves Mutant | -5/Factory Mutant | -5/Upper Caves Mutant | -5/Upper Caves Mutant | -4/Factory Mutant | -4/Extension Assassin | -3/Research Resources | -11 -10 -9 -9 -8 -7 -7 -7 -6 -6 -6 -6 -5 -5 -5 -5 -4 -4 -3 ----------- Run | Yrd Mat Mat Min Mat Fac Was Fac Fac Low Low Zio Pro Fac Upp Upp Fac Ext Res Matter Collected 6696 | 280 375 1216 38 1291 1496 207 115 . 268 30 30 . 35 15 20 304 281 695 Remotely . | . . . . . . . . . . . . . . . . . . . Salvage Created 9183 | 97 509 1248 31 1678 1978 207 5 . . . . . 89 . . 537 360 2444 Parts 491 | 9 29 99 4 94 122 . 1 . . . . . 3 . . 27 11 92 Haulers Intercepted 17 | . 2 5 . 5 3 . . . . . . . 1 . . . . 1 Recyclers Shooed 12 | . . 3 . 1 6 . . . . . . . . . . . . 2 Parts Field Recycled 15 | . . . . . . . . 15 . . . . . . . . . . Retrieved Matter 404 | . . . . . . . . 404 . . . . . . . . . . Parts Self-Destructed . | . . . . . . . . . . . . . . . . . . . Prevented . | . . . . . . . . . . . . . . . . . . . Parts Restored . | . . . . . . . . . . . . . . . . . . . Kills | -11 -10 -9 -9 -8 -7 -7 -7 -6 -6 -6 -6 -5 -5 -5 -5 -4 -4 -3 ------- Run | Yrd Mat Mat Min Mat Fac Was Fac Fac Low Low Zio Pro Fac Upp Upp Fac Ext Res Combat Hostiles Destroyed 158 | . 10 31 3 36 32 1 . . . . . . . . . 10 5 30 Melee 7 | . . . . . 1 . . . . . . . . . . . 2 4 Guns 74 | . 8 25 3 25 1 . . . . . . . . . . . . 12 Cannons 25 | . . . . . 13 . . . . . . . . . . . 3 9 AOE 44 | . 2 6 . 11 15 1 . . . . . . . . . 9 . . Classes Destroyed 15 | 2 5 3 . . 2 1 . . . . . . . . . 1 . 1 Worker 14 | . 2 4 . 3 1 . . . . . . . . . . 2 . 2 Builder 5 | . . 2 . . 1 . . . . . . . . . . 1 . 1 Tunneler 4 | 2 . . . . . . 1 . . . . . . . . 1 . . Hauler 17 | . 2 5 . 5 3 . . . . . . . 1 . . . . 1 Recycler 20 | 1 1 3 . 4 7 . . . . . . . . . . 2 1 1 Operator 8 | . . 5 . 2 1 . . . . . . . . . . . . . Watcher 19 | . 3 5 . 4 5 . . . . . . . . . . . . 2 Swarmer 52 | . 3 11 3 13 14 . . . . . . . . . . 4 3 1 Grunt 57 | . 7 11 . 15 6 . . . . . . . . . . 1 . 17 Duelist 1 | . . . . . . . . . . . . . . . . 1 . . Sentry 23 | . . 9 . 8 5 . . . . . . . . . . 1 . . Demolisher 1 | . . . . . 1 . . . . . . . . . . . . . Hunter 2 | . . . . . . . . . . . . . . . . . . 2 Programmer 20 | . . . . . 6 . . . . . . . . . . 3 1 10 Compactor 1 | . . . . . . 1 . . . . . . . . . . . . Butcher 1 | . . . . . . . . . . . . . . . . . 1 . Best Kill Streak 9 | 3 4 6 2 8 5 1 1 . . . . . 1 . . 9 2 5 Combat Bots Only 6 | . 3 6 2 6 4 1 . . . . . . . . . 5 2 4 Max Kills in Single Turn 4 | 1 3 4 1 3 3 1 1 . . . . . 1 . . 3 1 2 Gunslinging . | . . . . . . . . . . . . . . . . . . . Exploded 3 | . 2 3 . 3 3 1 . . . . . . . . . 2 . . Melee 1 | . . . . . 1 . . . . . . . . . . . 1 1 Uniques/NPCs Destroyed . | . . . . . . . . . . . . . . . . . . . Combat | -11 -10 -9 -9 -8 -7 -7 -7 -6 -6 -6 -6 -5 -5 -5 -5 -4 -4 -3 -------- Run | Yrd Mat Mat Min Mat Fac Was Fac Fac Low Low Zio Pro Fac Upp Upp Fac Ext Res Hostile Shots Fired 1606 | . 52 109 10 135 216 8 57 . . . . . 90 98 . 165 117 549 Missed 524 | . 10 40 2 43 65 2 32 . . . . . 46 49 . 60 43 132 Hits 1082 | . 42 69 8 92 151 6 25 . . . . . 44 49 . 105 74 417 Melee 8 | . . . . . . 6 . . . . . . . . . 2 . . Projectile 1074 | . 42 69 8 92 151 . 25 . . . . . 44 49 . 103 74 417 AOE 10 | . . . . . 10 . . . . . . . . . . . . . Critical Strikes 60 | . . 2 . 2 9 5 . . . . . . 2 1 . 5 3 31 Part Disruptions 3 | . . . . . . . . . . . . . . . . . 1 2 Damage Taken 19975 | 26 617 868 105 1278 2199 280 342 . . . . . 817 772 . 2320 1582 8769 Core 3396 | . 174 136 14 98 209 252 50 . . . . . 206 292 . 121 542 1302 Absorbed by Shields 626 | . . . . 117 166 18 . . . . . . . . . 325 . . Reduced by Siege Mode 201 | . . . . . . . . . . . . . . . . . . 201 Regen/Repaired (Parts) 285 | . . . . 89 . . . . . . 196 . . . . . . . Core Remaining (%) 61 | 100 30 . 62 82 . . 27 . . . . 100 . . 50 . 42 . Volleys Fired 526 | 10 48 101 6 90 108 9 7 . . . . . . . . 20 6 121 Largest 3 | 2 2 2 2 2 2 2 1 . . . . . . . . 1 1 3 Hottest 298 | 60 130 130 130 130 150 145 40 . . . . . . . . 88 88 298 Shots Fired 976 | 11 93 195 12 165 142 18 8 . . . . . . . . 20 6 306 Gun 684 | 11 92 192 12 148 1 9 1 . . . . . . . . . . 218 Cannon 235 | . . . . 2 120 7 7 . . . . . . . . 5 6 88 Launcher 57 | . 1 3 . 15 21 2 . . . . . . . . . 15 . . Special . | . . . . . . . . . . . . . . . . . . . Kinetic 51 | 10 22 . . . . . 8 . . . . . . . . . . 11 Thermal 786 | . 47 192 12 150 91 16 . . . . . . . . . . . 278 Explosive 49 | . 1 3 . 15 13 2 . . . . . . . . . 15 . . Electromagnetic 90 | 1 23 . . . 38 . . . . . . . . . . 5 6 17 Robot Hit Streak 32 | 7 17 19 5 14 32 8 3 . . . . . . . . 8 2 19 Robot Miss Streak 8 | 2 4 8 5 4 3 2 2 . . . . . . . . 1 2 6 Penetration Max . | . . . . . . . . . . . . . . . . . . . Secondary Targets 10 | . 1 2 . 3 . . . . . . . . . . . . . 4 Max Gunslinging Chain 1 | . 1 1 . 1 . . . . . . . . . . . . . 1 Shots Hit Robots 696 | 9 69 165 11 118 82 17 5 . . . . . 3 . . 12 4 201 Core Hits 582 | 4 43 212 11 125 72 6 1 . . . . . 1 . . 30 6 71 Critical Kills 2 | . . . . . . . . . . . . . . . . . . 2 Critical Parts Destroyed 1 | . . . . . 1 . . . . . . . . . . . . . Critical Strikes 26 | . . . . 2 2 . . . . . . . . . . . 1 21 Burn 14 | . . . . 2 . . . . . . . . . . . . . 12 Meltdown 1 | . . . . . . . . . . . . . . . . . . 1 Destroy 1 | . . . . . . . . . . . . . . . . . . 1 Corrupt 2 | . . . . . 1 . . . . . . . . . . . 1 . Smash 1 | . . . . . 1 . . . . . . . . . . . . . Sever 7 | . . . . . . . . . . . . . . . . . . 7 Melee Attacks 55 | . . . . . 15 . . . 2 . . . 9 3 . 1 1 24 Impact 15 | . . . . . 15 . . . . . . . . . . . . . Slashing 40 | . . . . . . . . . 2 . . . 9 3 . 1 1 24 Piercing . | . . . . . . . . . . . . . . . . . . . Sneak Attacks 4 | . . . . . . . . . . . . . 1 . . . 1 2 Combat Hostiles . | . . . . . . . . . . . . . . . . . . . Follow-up Attacks . | . . . . . . . . . . . . . . . . . . . Damage Inflicted 20863 | 119 993 2640 146 3270 3170 639 127 . . . . . 168 . . 2664 241 6686 Guns 9085 | 78 822 2244 127 2007 22 242 16 . . . . . . . . . . 3527 Cannons 4535 | . . . . 50 1888 187 111 . . . . . . . . 160 125 2014 Explosions 5764 | 41 171 396 . 1204 998 210 . . . . . . . . . 2504 . 240 Melee 1381 | . . . . . 262 . . . . . . . 168 . . . 54 897 Ramming 98 | . . . 19 9 . . . . . . . . . . . . 62 8 Kinetic 375 | 65 146 . . . . . 127 . . . . . . . . . . 37 Thermal 13030 | 41 520 2244 127 2057 1416 429 . . . . . . . . . 938 . 5258 Explosive 4362 | . 139 396 . 1204 633 210 . . . . . . . . . 1540 . 240 Electromagnetic 1617 | 13 188 . . . 859 . . . . . . . . . . 186 125 246 Impact 262 | . . . . . 262 . . . . . . . . . . . . . Slashing 1119 | . . . . . . . . . . . . . 168 . . . 54 897 Piercing . | . . . . . . . . . . . . . . . . . . . Highest Corruption 32 | . 2 2 4 1 10 32 32 . . . . . . . . 2 8 27 Average Corruption 8 | . 2 2 2 1 6 22 32 . . . . . . . . 2 4 14 Corruption Purged 2 | . . . . . . . . . . . . . . . . . . 2 Corruption Blocked . | . . . . . . . . . . . . . . . . . . . Effects 241 | . 2 18 5 4 63 20 21 . . . . . . . . 2 10 96 Message Errors 45 | . 1 4 1 2 13 2 5 . . . . . . . . . 2 15 Matter Fused 53 | . . 4 . 1 13 5 5 . . . . . . . . 1 4 20 Heat Flow Errors 23 | . . 3 1 . 6 1 . . . . . . . . . . 1 11 Energy Discharges 33 | . . 3 . . 12 4 . . . . . . . . . . 1 13 Parts Rejected 5 | . . . . . 1 1 . . . . . . . . . 1 . 2 Parts Fused 1 | . . . . . . . 1 . . . . . . . . . . . Data Loss (minor) 25 | . . 2 1 . 9 . 4 . . . . . . . . . 2 7 Data Loss (major) 16 | . . 1 2 . 4 2 1 . . . . . . . . . . 6 Misfires 4 | . . . . 1 2 . 1 . . . . . . . . . . . Alerts 3 | . 1 1 . . 1 . . . . . . . . . . . . . Misdirections 17 | . . . . . . 5 4 . . . . . . . . . . 8 Weapon Failures 16 | . . . . . 2 . . . . . . . . . . . . 14 Overload Shots 6 | . . . . . . . . . . . . . . . . . . 6 Overflow Damage 537 | 11 . 31 . 54 137 . . . . . . . . . . 159 2 143 Projectiles 84 | . . . . . 29 . . . . . . . . . . . . 55 Explosions 344 | 11 . 31 . 54 47 . . . . . . . . . . 159 . 42 Melee 109 | . . . . . 61 . . . . . . . . . . . 2 46 Knockbacks 10 | . . . 1 1 4 . 2 . . . . . . . . . 2 . Impact 8 | . . . 1 1 4 . . . . . . . . . . . 2 . Kinetic 2 | . . . . . . . 2 . . . . . . . . . . . Secondary . | . . . . . . . . . . . . . . . . . . . Self-Inflicted Damage 926 | 27 87 . 9 41 179 34 . . . . . . . . . 518 27 4 Shots 21 | 1 2 . . 3 5 1 . . . . . . . . . 9 . . Rammed 20 | . . . 1 2 . . . . . . . . . . . . 15 2 Targets Rammed 21 | . . . 1 2 . . . . . . . . . . . . 16 2 Kicked . | . . . . . . . . . . . . . . . . . . . Crushed 1 | . . . . . . . . . . . . . . . . . 1 . Highest Temperature 380 | 32 237 282 138 318 254 138 34 . . . . . 4 . . 48 78 380 Average Temperature 83 | 22 74 92 55 60 47 13 18 . . . . . 4 . . 26 42 117 Received Heat Transfer 3327 | . 279 354 6 576 242 . 6 . . . . . 36 9 . 293 147 1379 Effects 14 | . 2 3 . . . . . . . . . . . . . . . 9 Shutdowns 1 | . . . . . . . . . . . . . . . . . . 1 Energy Bleed 4 | . . 1 . . . . . . . . . . . . . . . 3 Interference 8 | . 2 2 . . . . . . . . . . . . . . . 4 Damage (minor) 1 | . . . . . . . . . . . . . . . . . . 1 Siege Activations 3 | . . . . . . . . . . . . . . . . . . 3 Total Turns 105 | . . . . . . . . . . . . . . . . . . 105 Longest Duration 39 | . . . . . . . . . . . . . . . . . . 39 Martial Activations . | . . . . . . . . . . . . . . . . . . . Shielding Activations . | . . . . . . . . . . . . . . . . . . . Robots Disrupted 1 | . . . . . 1 . . . . . . . . . . . . . Combat Hostiles 1 | . . . . . 1 . . . . . . . . . . . . . Robots Corrupted 6 | . . . . . 2 . . . . . . . . . . 1 1 2 Combat Hostiles 5 | . . . . . 2 . . . . . . . . . . 1 . 2 Parts Fried 10 | . 1 . . . 2 . . . . . . . . . . 2 3 2 Impact Corruptions 5 | . . . . . 4 . . . . . . . . . . . 1 . Robots Melted 3 | . . . . . . . . . . . . . . . . . . 3 Combat Hostiles 3 | . . . . . . . . . . . . . . . . . . 3 Parts Melted 36 | . 1 . . 6 2 . . . . . . . . . . . . 27 Heat Transferred 19526 | 50 1007 2760 150 3745 1974 722 . . . . . . . . . 600 . 8518 Parts Sabotaged . | . . . . . . . . . . . . . . . . . . . Parts Stolen . | . . . . . . . . . . . . . . . . . . . Parts Stripped . | . . . . . . . . . . . . . . . . . . . Power Chain Reactions 6 | 1 1 . . . 4 . . . . . . . . . . . . . Alert | -11 -10 -9 -9 -8 -7 -7 -7 -6 -6 -6 -6 -5 -5 -5 -5 -4 -4 -3 ------- Run | Yrd Mat Mat Min Mat Fac Was Fac Fac Low Low Zio Pro Fac Upp Upp Fac Ext Res Maximum Alert Level 2 | . . 2 1 2 2 . . . . . . . 2 . . 2 1 2 Low Security (%) 59 | 100 100 45 79 43 55 100 100 100 . . . . . . . 81 12 79 Level 1 26 | . . 42 20 39 22 . . . . . . . . . . 2 87 19 Level 2 14 | . . 12 . 16 22 . . . . . . . 100 . . 16 . . Level 3 . | . . . . . . . . . . . . . . . . . . . Level 4 . | . . . . . . . . . . . . . . . . . . . Level 5 . | . . . . . . . . . . . . . . . . . . . High Security . | . . . . . . . . . . . . . . . . . . . Max Security . | . . . . . . . . . . . . . . . . . . . Peak Influence 616 | 5 98 528 224 441 552 192 16 15 . . . . 612 . . 616 339 415 Initial 600 | . . 5 199 47 198 192 . . . . . . 600 . . 189 284 80 Average 202 | . 37 233 178 264 239 114 1 . . . . . 544 . . 167 253 95 Influence Increases 7868 | 15 350 1096 130 1439 1242 14 51 37 . . . . 1023 270 60 743 415 983 Destroy 0b10 Robot/C 3300 | . 200 620 60 720 640 . . . . . . . 20 . . 200 240 600 Destroy 0b10 Robot/NC 450 | 15 40 125 . 90 90 . 5 . . . . . 15 . . 30 5 35 Destroy Leader 802 | . 60 180 10 188 186 . . . . . . . 2 . . 50 10 116 Allied During Kill 40 | . . . . . . . . . . . . . 1 . . . 39 . Successful Hack 212 | . 22 53 . 53 19 . . 37 . . . . 28 . . . . . Disable Machine 345 | . 15 . . 60 105 . 15 . . . . . . . . 105 . 45 Destroy Structure 709 | . 13 13 . 103 127 14 1 . . . . . 42 . . 328 16 52 Advance Influence 600 | . . . . . . . . . . . . . 600 . . . . . Partial Spotted 30 | . . . . . 15 . . . . . . . 15 . . . . . Lose Combat Pursuer 1380 | . . 105 60 225 60 . 30 . . . . . 300 270 60 30 105 135 Influence Decreases 7593 | 15 337 597 519 1124 1130 564 51 37 . . . . 476 394 181 465 842 861 Entered New Map 1762 | . . 8 313 76 240 358 . . . . . . . 204 81 113 296 73 Time Decay 4191 | 15 327 589 206 728 640 136 51 37 . . . . 246 140 100 322 246 408 Search Patrol Dispatched 100 | . . . . . . . . . . . . . 100 . . . . . Lost Part 860 | . 10 . . 20 80 70 . . . . . . 70 50 . 30 160 370 Lost Ally 230 | . . . . . 20 . . . . . . . 60 . . . 140 10 Purge Threat 450 | . . . . 300 150 . . . . . . . . . . . . . Squads Dispatched 40 | . 2 3 . 6 11 . 1 . . . . . 3 . . 3 3 8 Investigation 8 | . 1 1 . 2 1 . . . . . . . 1 . . 1 1 . Extermination 13 | . . . . . 5 . 1 . . . . . 2 . . 1 . 4 Reinforcement 16 | . 1 2 . 3 4 . . . . . . . . . . 1 2 3 Assault 1 | . . . . . 1 . . . . . . . . . . . . . Garrison 2 | . . . . 1 . . . . . . . . . . . . . 1 Intercept . | . . . . . . . . . . . . . . . . . . . Searches Triggered 1 | . . . . . . . . . . . . . 1 . . . . . Construction Impeded 4 | . . . . 1 1 . . . . . . . . . . 1 . 1 Haulers Reinforced 2 | . . . . . 2 . . . . . . . . . . . . . Active Scanning Responses . | . . . . . . . . . . . . . . . . . . . Cargo Convoy Interrupts . | . . . . . . . . . . . . . . . . . . . Stealth | -11 -10 -9 -9 -8 -7 -7 -7 -6 -6 -6 -6 -5 -5 -5 -5 -4 -4 -3 --------- Run | Yrd Mat Mat Min Mat Fac Was Fac Fac Low Low Zio Pro Fac Upp Upp Fac Ext Res Distress Signals 23 | . 2 4 . 4 1 . . . . . . 2 4 . . 1 2 3 Communications Jammed 5 | . . . . . . . . . . . . . 1 . . . . 4 Distress Signals 5 | . . . . . . . . . . . . . 1 . . . . 4 Times Spotted 382 | . 17 50 7 63 49 6 8 1 1 . . . 29 31 4 21 30 65 Peak Tracking Total 20 | . 4 5 3 7 5 5 5 1 1 . . . 9 20 4 8 10 7 Tactical Retreats 42 | . . 4 2 6 2 . 2 . . . . . 8 5 2 1 3 7 Traps | -11 -10 -9 -9 -8 -7 -7 -7 -6 -6 -6 -6 -5 -5 -5 -5 -4 -4 -3 ------- Run | Yrd Mat Mat Min Mat Fac Was Fac Fac Low Low Zio Pro Fac Upp Upp Fac Ext Res Traps Triggered 13 | . 2 1 . 2 3 . . . . . . . . . . . 2 3 Indirectly . | . . . . . . . . . . . . . . . . . . . Trap Hack Attempts . | . . . . . . . . . . . . . . . . . . . Triggered . | . . . . . . . . . . . . . . . . . . . Disarmed . | . . . . . . . . . . . . . . . . . . . Reprogrammed . | . . . . . . . . . . . . . . . . . . . Reused . | . . . . . . . . . . . . . . . . . . . Traps Extracted . | . . . . . . . . . . . . . . . . . . . Installed . | . . . . . . . . . . . . . . . . . . . Triggered . | . . . . . . . . . . . . . . . . . . . Machines | -11 -10 -9 -9 -8 -7 -7 -7 -6 -6 -6 -6 -5 -5 -5 -5 -4 -4 -3 ---------- Run | Yrd Mat Mat Min Mat Fac Was Fac Fac Low Low Zio Pro Fac Upp Upp Fac Ext Res Machines Disabled 24 | . 1 . . 4 7 . 1 . 1 . . . . . . 7 . 3 Max in Single Turn 3 | . 1 . . 2 3 . 1 . 1 . . . . . . 2 . 1 Garrison Access 3 | . . . . . 2 . . . . . . . . . . . . 1 Energy Cycler 1 | . . . . . . . . . . . . . . . . . 1 . Machines Repaired . | . . . . . . . . . . . . . . . . . . . Machines Dismantled . | . . . . . . . . . . . . . . . . . . . Machines Sabotaged . | . . . . . . . . . . . . . . . . . . . Overloaded Fab Kills . | . . . . . . . . . . . . . . . . . . . Hacking | -11 -10 -9 -9 -8 -7 -7 -7 -6 -6 -6 -6 -5 -5 -5 -5 -4 -4 -3 --------- Run | Yrd Mat Mat Min Mat Fac Was Fac Fac Low Low Zio Pro Fac Upp Upp Fac Ext Res Machines Accessed 54 | . 5 10 1 10 12 . 2 3 . . . . 5 . 1 . 2 3 Terminals 33 | . 5 8 . 8 6 . . 3 . . . . . . . . 2 1 Fabricators 1 | . . . . . . . . . . . . . 1 . . . . . Repair Stations 6 | . . . . 1 3 . 1 . . . . . . . . . . 1 Recycling Units . | . . . . . . . . . . . . . . . . . . . Scanalyzers 6 | . . 2 . 1 1 . . . . . . . 2 . . . . . Garrison Access 6 | . . . . . 2 . 1 . . . . . 2 . . . . 1 Total Hacks 163 | . 18 38 1 39 31 . 3 16 . . . . 10 . 1 . 3 3 Successful 77 | . 12 20 1 21 12 . . 6 . . . . 2 . 1 . . 2 Failed 83 | . 6 18 . 17 18 . 3 10 . . . . 7 . . . 3 1 Catastrophic 11 | . . 3 . 2 1 . 1 1 . . . . 2 . . . . 1 Database Lockouts 3 | . . . . 1 1 . . . . . . . 1 . . . . . Manual 127 | . 17 26 . 29 19 . . 16 . . . . 12 . . . 2 6 Terminals 118 | . 18 28 . 33 19 . . 16 . . . . . . . . 3 1 Fabricators 2 | . . . . . . . . . . . . . 2 . . . . . Repair Stations 14 | . . . . 4 7 . 2 . . . . . . . . . . 1 Recycling Units . | . . . . . . . . . . . . . . . . . . . Scanalyzers 20 | . . 10 . 2 3 . . . . . . . 5 . . . . . Garrison Access 7 | . . . . . 2 . 1 . . . . . 3 . . . . 1 Terminal Hacks 17 | . 2 2 1 7 2 . . 1 . . . . . . 1 . . 1 Record 1 | . . . . . . . . . . . . . . . 1 . . . Part Schematic 1 | . . . . . . . . 1 . . . . . . . . . . Prototype ID Bank 2 | . 1 . . 1 . . . . . . . . . . . . . . Open Door 1 | . . . 1 . . . . . . . . . . . . . . . Open DSF 1 | . . . . . . . . . . . . . . . . . . 1 Branch Access Points 1 | . . 1 . . . . . . . . . . . . . . . . Terminal Index 2 | . 1 . . 1 . . . . . . . . . . . . . . Unreport Threat 3 | . . . . 2 1 . . . . . . . . . . . . . Locate Traps 3 | . . . . 2 1 . . . . . . . . . . . . . Maintenance Status 1 | . . . . 1 . . . . . . . . . . . . . . Zone Layout 1 | . . 1 . . . . . . . . . . . . . . . . Fabricator Hacks 1 | . . . . . . . . . . . . . 1 . . . . . Build 1 | . . . . . . . . . . . . . 1 . . . . . Repair Station Hacks 4 | . . . . 3 1 . . . . . . . . . . . . . Scan Component 2 | . . . . 2 . . . . . . . . . . . . . . Repair 1 | . . . . 1 . . . . . . . . . . . . . . Refit 1 | . . . . . 1 . . . . . . . . . . . . . Recycling Unit Hacks . | . . . . . . . . . . . . . . . . . . . Scanalyzer 12 | . . 8 . 1 2 . . . . . . . 1 . . . . . Insert Component 1 | . . 1 . . . . . . . . . . . . . . . . Analyze 1 | . . 1 . . . . . . . . . . . . . . . . Retrieve Study 10 | . . 6 . 1 2 . . . . . . . 1 . . . . . Garrison Access Hacks 3 | . . . . . 2 . . . . . . . . . . . . 1 Seal Access 3 | . . . . . 2 . . . . . . . . . . . . 1 Unauthorized Hacks 40 | . 10 10 . 10 5 . . 5 . . . . . . . . . . Terminals 40 | . 10 10 . 10 5 . . 5 . . . . . . . . . . Assimilate 1 | . . 1 . . . . . . . . . . . . . . . . Botnet 16 | . 4 4 . 4 1 . . 3 . . . . . . . . . . Operators 1 | . 1 . . . . . . . . . . . . . . . . . Skim 22 | . 5 5 . 6 4 . . 2 . . . . . . . . . . Fabricators . | . . . . . . . . . . . . . . . . . . . Repair Stations . | . . . . . . . . . . . . . . . . . . . Recycling Units . | . . . . . . . . . . . . . . . . . . . Scanalyzers . | . . . . . . . . . . . . . . . . . . . Garrison Access . | . . . . . . . . . . . . . . . . . . . Data Cores Recovered 4 | . . 3 . . 1 . . . . . . . . . . . . . Used . | . . . . . . . . . . . . . . . . . . . Hacking Detections 43 | . 5 10 . 8 9 . 2 3 . . . . 4 . . . 1 1 Full Trace Events 6 | . . 1 . 2 1 . . . . . . . 1 . . . 1 . Feedback Events 2 | . . . . 1 1 . . . . . . . . . . . . . Corruption 2 | . . . . 1 1 . . . . . . . . . . . . . Feedback Blocked . | . . . . . . . . . . . . . . . . . . . Robot Schematics Acquired . | . . . . . . . . . . . . . . . . . . . Robots Built . | . . . . . . . . . . . . . . . . . . . Authchips . | . . . . . . . . . . . . . . . . . . . Time . | . . . . . . . . . . . . . . . . . . . Total Robot Build Rating . | . . . . . . . . . . . . . . . . . . . Part Schematics Acquired 18 | . . 1 . . . . . 1 . . . . 16 . . . . . Parts Built 1 | . . . . . . . . . . . . . 1 . . . . . Authchips . | . . . . . . . . . . . . . . . . . . . Time 93 | . . . . . . . . . . . . . 93 . . . . . Total Part Build Rating 7 | . . . . . . . . . . . . . 7 . . . . . Part Studies Acquired 9 | . . 5 . 1 2 . . . . . . . 1 . . . . . Parts Repaired 1 | . . . . 1 . . . . . . . . . . . . . . Time 13 | . . . . 13 . . . . . . . . . . . . . . Parts Recycled . | . . . . . . . . . . . . . . . . . . . Recycled Matter . | . . . . . . . . . . . . . . . . . . . Retrieved Matter . | . . . . . . . . . . . . . . . . . . . Retrieved Components . | . . . . . . . . . . . . . . . . . . . Parts Scanalyzed 1 | . . 1 . . . . . . . . . . . . . . . . Part Schematics Acquired 1 | . . 1 . . . . . . . . . . . . . . . . Parts Damaged . | . . . . . . . . . . . . . . . . . . . Bothacking | -11 -10 -9 -9 -8 -7 -7 -7 -6 -6 -6 -6 -5 -5 -5 -5 -4 -4 -3 ------------ Run | Yrd Mat Mat Min Mat Fac Was Fac Fac Low Low Zio Pro Fac Upp Upp Fac Ext Res Used RIF Installer . | . . . . . . . . . . . . . . . . . . . Robots Hacked . | . . . . . . . . . . . . . . . . . . . Non-combat . | . . . . . . . . . . . . . . . . . . . Combat . | . . . . . . . . . . . . . . . . . . . Robot Hacks Applied . | . . . . . . . . . . . . . . . . . . . Relay Couplers Released . | . . . . . . . . . . . . . . . . . . . Fabnet Peak Effective % . | . . . . . . . . . . . . . . . . . . . Robots Rewired 4 | . . . . . 1 . . . . . . . . . . . 3 . Allies Hacked 3 | . . . . . . . . . . . . . . . . . 2 1 Hacks Repelled . | . . . . . . . . . . . . . . . . . . . Allies | -11 -10 -9 -9 -8 -7 -7 -7 -6 -6 -6 -6 -5 -5 -5 -5 -4 -4 -3 -------- Run | Yrd Mat Mat Min Mat Fac Was Fac Fac Low Low Zio Pro Fac Upp Upp Fac Ext Res Total Allies 15 | . . . . . 1 . . . . . 4 . 1 . . . 8 1 Largest Group 4 | . . . . . 1 . . . . . 4 4 2 . . . 3 1 Highest-Rated Group 288 | . . . . . 16 . . . . . 150 150 76 . . . 288 31 Highest-Rated Ally 96 | . . . . . 16 . . . . . 39 39 39 . . . 96 31 Zionite Dispatches 3 | . . . . . . . . . . . . . 1 . . . 1 1 Light 1 | . . . . . . . . . . . . . . . . . 1 . Demo 1 | . . . . . . . . . . . . . 1 . . . . . Thermal Resupply 1 | . . . . . . . . . . . . . . . . . . 1 Total Orders 1 | . . . . . . . . . . . . . . . . . . 1 DROP 1 | . . . . . . . . . . . . . . . . . . 1 Ally Attacks 40 | . . . . . . . . . . . . . 5 . . . 35 . Total Damage 1505 | . . . . . . . . . . . . . 248 . . . 1257 . Kills 10 | . . . . . . . . . . . . . 3 . . . 7 . Allies Corrupted 2 | . . . . . . . . . . . . . . . . . 1 1 Allies Melted . | . . . . . . . . . . . . . . . . . . . Intel | -11 -10 -9 -9 -8 -7 -7 -7 -6 -6 -6 -6 -5 -5 -5 -5 -4 -4 -3 ------- Run | Yrd Mat Mat Min Mat Fac Was Fac Fac Low Low Zio Pro Fac Upp Upp Fac Ext Res Active Infowar (turns) 13499 | 40 690 1264 . 2381 2706 11 311 459 601 568 823 277 353 . . 454 521 2040 Optics 8499 | . . . . . 2640 11 . 395 601 568 823 277 353 . . 451 521 1859 Sensors 5217 | . . . . 5 1035 . 151 459 601 568 823 277 83 . . 290 61 864 IFF 4 | . . . . . . . . 4 . . . . . . . . . . Terrain 149 | . . . . . . . . . . . . . 149 . . . . . Structural 2131 | . . 1126 . 586 419 . . . . . . . . . . . . . Seismic 4732 | 40 690 1182 . 2016 225 . . . . . . . 327 . . 251 1 . Machine Analysis 2949 | . . . . . . . . . . 562 823 277 353 . . 451 483 . Cloaking 167 | . . . . . . . . . . . . . . . . . . 167 Jamming 2826 | . . . . . 1 . 311 432 601 177 69 . 131 . . . . 1104 Robot Analysis Total . | . . . . . . . . . . . . . . . . . . . Derelict Logs Recovered 7 | . . . 1 . . . . . 2 2 1 . . 1 . . . . Drone Launches . | . . . . . . . . . . . . . . . . . . . Drone Recoveries . | . . . . . . . . . . . . . . . . . . . Zionite Intel Received 2 | . . . . . . . . . . . . . 2 . . . . . Component Schematics 1 | . . . . . . . . . . . . . 1 . . . . . Active Terminals 1 | . . . . . . . . . . . . . 1 . . . . . Exploration | -11 -10 -9 -9 -8 -7 -7 -7 -6 -6 -6 -6 -5 -5 -5 -5 -4 -4 -3 ------------- Run | Yrd Mat Mat Min Mat Fac Was Fac Fac Low Low Zio Pro Fac Upp Upp Fac Ext Res Turns Passed 17291 | 99 791 2025 421 3547 2706 283 367 459 601 568 823 277 525 284 201 753 521 2040 Spaces Moved 13390 | 70 621 1189 377 1889 1461 222 671 493 890 760 950 251 693 607 261 458 449 1078 Core 376 | 2 . . . . . 2 . . . . . . . . . . 166 206 Treads 1019 | . 17 12 . 333 89 . . . . . . . . . . 5 2 561 Legs 2 | . 1 . . . . . . . . . . . . . . . 1 . Wheels 6275 | 68 603 1177 377 1556 1372 176 . . . . . . . . . 437 198 311 Hover 82 | . . . . . . . . . . . . . . . . . 82 . Flight 5636 | . . . . . . 44 671 493 890 760 950 251 693 607 261 16 . . Fastest Speed 32 | 50 80 76 106 105 97 35 49 49 59 69 69 69 46 32 32 42 50 50 Average Speed 93 | 88 88 98 106 139 125 97 49 60 66 69 69 69 64 44 38 112 86 122 Slowest Speed 350 | 90 240 213 106 240 215 165 49 127 69 137 69 69 69 52 42 170 250 350 Overloaded Moves 27 | . . . . . . . . . . . . . . 27 . . . . Propulsion Burnouts . | . . . . . . . . . . . . . . . . . . . Robots Hopped 16 | . . . . . . . 4 1 . . . . 11 . . . . . Potential Cave-ins 1 | . . . . . . . . . . . . . . . . 1 . . Cave-ins Triggered . | . . . . . . . . . . . . . . . . . . . Exploration Rate (%) 56 | 5 94 92 77 90 42 91 21 13 93 81 91 51 27 82 19 12 55 31 Regions Visited 18 Branch Regions 8 Pre-discovered Areas 8 | . . 3 1 1 . . . . 1 1 1 . . . . . . . Known Exits Taken 14 | . . 1 1 1 . . 1 1 1 1 1 1 1 1 1 1 1 . Unknown Exits Taken 2 | 1 1 . . . . . . . . . . . . . . . . . Scrap Searched 24 | . . . 3 . . . . . 7 7 4 . . 3 . . . . Spaces Dug 187 | . . 9 . 78 61 . . . 1 . . . 5 3 . 29 . 1 Terrain Destroyed 623 | 6 12 14 . 136 139 28 1 . 1 . . . 5 3 . 254 . 24 Melee 11 | . . . . . 2 . . . 1 . . . 5 3 . . . . Projectile 31 | . . . . . 8 1 1 . . . . . . . . . . 21 AOE 581 | 6 12 14 . 136 129 27 . . . . . . . . . 254 . 3 Terrain Rammed . | . . . . . . . . . . . . . . . . . . . Walls Destroyed . | . . . . . . . . . . . . . . . . . . . Machines Disabled . | . . . . . . . . . . . . . . . . . . . Actions | -11 -10 -9 -9 -8 -7 -7 -7 -6 -6 -6 -6 -5 -5 -5 -5 -4 -4 -3 --------- Run | Yrd Mat Mat Min Mat Fac Was Fac Fac Low Low Zio Pro Fac Upp Upp Fac Ext Res Total 17058 | 94 768 1818 386 2619 2142 262 696 651 897 804 1117 354 742 615 360 665 567 1501 Wait 2029 | . 37 340 3 447 334 19 1 113 . 31 162 104 42 6 98 148 8 136 Move 13341 | 69 620 1188 376 1888 1461 221 662 490 889 759 949 250 670 606 260 457 448 1078 Hop 16 | . . . . . . . 4 1 . . . . 11 . . . . . Pick Up 162 | 8 13 35 . 34 25 . 6 3 1 5 1 . 1 . . 3 4 23 Fast Attach 131 | 7 2 1 . 9 19 5 7 11 2 1 . . 6 . 2 11 8 40 Attach 79 | . 1 2 . 4 19 3 5 6 . 1 1 . 1 . . 6 3 27 Detach 39 | . . . . 2 10 . 1 7 1 1 1 . . . . 5 2 9 Swap 384 | . 32 116 . 100 101 3 . 8 . 1 2 . 1 . . 8 . 12 Drop 190 | . 15 35 . 43 38 1 3 12 2 5 1 . 1 . . 6 7 21 Fire 526 | 10 48 101 6 90 108 9 7 . . . . . . . . 20 6 121 Melee 55 | . . . . . 15 . . . 2 . . . 9 3 . 1 1 24 Ram 8 | . . . 1 . . 1 . . . . . . . . . . 4 2 Kick . | . . . . . . . . . . . . . . . . . . . Crush 14 | . . . . 2 . . . . . . . . . . . . 12 . Escape Stasis 30 | . . . . . 8 . . . . . . . . . . . 14 8 Rewire 54 | . . . . . 4 . . . . . . . . . . . 50 . Trap . | . . . . . . . . . . . . . . . . . . . Miscellaneous . | . . . . . . . . . . . . . . . . . . . Route ------- -11/Scrapyard -10/Materials (discovered 4 exits: *Mat x2 / [*Min x2]) -9/Materials (discovered 4 exits: *Mat x3 / *Min) -9/Mines (discovered 2 exits: *Mat x2) -8/Materials (discovered 3 exits: *Fac x3) -7/Factory (discovered 6 exits: *Fac x2 / Sto x2 / *Low x2) -7/Waste -7/Factory (discovered 3 exits: *Fac x2 / *Low) -6/Factory -6/Lower Caves -6/Lower Caves -6/Zion -5/Proximity Caves -5/Factory -5/Upper Caves -5/Upper Caves -4/Factory -4/Extension -3/Research History --------- Turn | Location | Event 11 | -11/Scrapyard | Discovered new exit (range 16) 100 | -11/Scrapyard | Entered Materials 186 | -10/Materials | Core integrity fell below 50% 317 | -10/Materials | Build established: Mutant 406 | -10/Materials | Discovered new exit (range 7) 483 | -10/Materials | Discovered new exit (range 3) 494 | -10/Materials | Discovered new exit (range 13) 741 | -10/Materials | Learned Storage stockpile data 792 | -10/Materials | Learned location of 2 exits from Subcaves 849 | -10/Materials | Discovered new exit (range 4) 869 | -10/Materials | Learned 2 Mines zone layouts 891 | -10/Materials | Entered another Materials area 891 | -9/Materials | Evolved 2 slots: Propulsion x1, Utility x1 1056 | -9/Materials | Build established: Scavenger-Mutant 1532 | -9/Materials | Discovered new exit (range 16) 1963 | -9/Materials | Discovered new exit (range 16) 2560 | -9/Materials | Identified exit to Mines 2636 | -9/Materials | Identified exit to Materials 2698 | -9/Materials | Build established: Mutant 2741 | -9/Materials | Learned location of 1 exit from Recycling 2776 | -9/Materials | Loaded intel: 10 trap records 2848 | -9/Materials | Learned location of Recycling (-7) 2916 | -9/Materials | Entered Mines 2951 | -9/Mines | Learned location of Zion (-6) 2970 | -9/Mines | Received a Rocket Launcher from a helpful Derelict 3279 | -9/Mines | Found a hidden stash of uninstalled traps 3290 | -9/Mines | Discovered exit to Materials (range 13) 3321 | -9/Mines | Met a Derelict who couldn't figure out how to use a Trap Extractor 3337 | -9/Mines | Entered Materials 3337 | -8/Materials | Evolved 2 slots: Propulsion x1, Utility x1 3675 | -8/Materials | Garrison activated, responded to threat 4232 | -8/Materials | Central database locked down 4386 | -8/Materials | Discovered new exit (range 15) 5196 | -8/Materials | Learned 8 Factory zone layouts 5276 | -8/Materials | Identified exit to Factory 5301 | -8/Materials | Learned Factory stockpile data 5339 | -8/Materials | Learned location of 2 exits from Factory 5371 | -8/Materials | Learned Storage trap positions 5534 | -8/Materials | Build established: Scavenger-Mutant 6093 | -8/Materials | Build established: Mutant 6577 | -8/Materials | Repaired Lgt. Treads+ 6884 | -8/Materials | Entered Factory 6884 | -7/Factory | Evolved 2 slots: Utility x2 6885 | -7/Factory | Identified exit to Lower Caves 6885 | -7/Factory | Identified exit to Factory 6886 | -7/Factory | Identified exit to Storage 7064 | -7/Factory | Discovered exit to Factory (range 17) 7304 | -7/Factory | Central database locked down 7421 | -7/Factory | Lost 3 parts (1n2u) 7784 | -7/Factory | Discovered exit to Lower Caves (range 8) 8518 | -7/Factory | System corruption reached 10% 8545 | -7/Factory | Lost 4 parts (2n1u1w) 9284 | -7/Factory | First assault squad dispatched 9441 | -7/Factory | Build established: Scavenger-Mutant 9590 | -7/Factory | Sucked down chute 9590 | -7/Factory | Entered Waste 9605 | -7/Waste | EMP discharged 9605 | -7/Waste | Spotted C-40 Crusher 9689 | -7/Waste | Crushed by Compactor (1 part destroyed, 2 dropped) 9705 | -7/Waste | EMP discharged 9710 | -7/Waste | Spotted C-40 Crusher 9719 | -7/Waste | Destroyed C-40 Crusher 9746 | -7/Waste | Spotted C-40 Crusher 9756 | -7/Waste | Spotted C-40 Crusher 9768 | -7/Waste | Crushed by Compactor (1 part destroyed, 2 dropped) 9783 | -7/Waste | Spotted C-40 Crusher 9792 | -7/Waste | Crushed by Compactor (1 part destroyed, 2 dropped) 9805 | -7/Waste | EMP discharged 9805 | -7/Waste | System corruption reached 30% 9823 | -7/Waste | Lost 3 parts (1n2w) 9830 | -7/Waste | Spotted C-40 Crusher 9833 | -7/Waste | Discovered new exit (range 10) 9835 | -7/Waste | Crushed by Compactor (1 part destroyed, 1 dropped) 9836 | -7/Waste | Core integrity fell below 50% 9841 | -7/Waste | Crushed by Compactor (1 part destroyed, 2 dropped) 9844 | -7/Waste | Crushed by Compactor (1 part destroyed) 9873 | -7/Waste | Entered Factory 9875 | -7/Factory | Lost 3 parts (2n1u) 9913 | -7/Factory | Discovered exit to Factory (range 9) 10057 | -7/Factory | Discovered exit to Factory (range 14) 10081 | -7/Factory | Build established: Mutant 10137 | -7/Factory | Discovered exit to Lower Caves (range 16) 10240 | -7/Factory | Entered another Factory area 10240 | -6/Factory | Evolved 2 slots: Power x1, Propulsion x1 10597 | -6/Factory | Build established: Scout 10693 | -6/Factory | Discovered new exit (range 3) 10695 | -6/Factory | Identified exit to Lower Caves 10699 | -6/Factory | Entered Lower Caves 10869 | -6/Lower Caves | Learned Factory trap positions 10938 | -6/Lower Caves | Build established: Ninja 10970 | -6/Lower Caves | Discovered new exit (range 13) 10978 | -6/Lower Caves | Identified exit to Lower Caves 11206 | -6/Lower Caves | Attacked by a delusional Derelict stockpiling parts 11300 | -6/Lower Caves | Entered another Lower Caves area 11400 | -6/Lower Caves | Learned 4 Factory zone layouts 11614 | -6/Lower Caves | Build established: Scout 11645 | -6/Lower Caves | Discovered new exit (range 22) 11663 | -6/Lower Caves | Identified exit to Zion 11868 | -6/Lower Caves | Entered Zion 11935 | -6/Zion | Given the Hacking Drone Bay 11936 | -6/Zion | Found Prototype Device 11937 | -6/Zion | Identified Hacking Drone Bay 11948 | -6/Zion | Discovered new exit (range 20) 11986 | -6/Zion | Visited the Megawrench Repair Shop 11986 | -6/Zion | Megawrench repaired 6 parts 12085 | -6/Zion | Learned Factory garrison access intel 12222 | -6/Zion | Learned Factory emergency access door positions 12395 | -6/Zion | Met Imprinter 12408 | -6/Zion | Imprinted 12410 | -6/Zion | Declared Zion's savior 12527 | -6/Zion | Identified exit to Proximity Caves 12691 | -6/Zion | Entered Proximity Caves 12691 | -5/Proximity Caves | Accompanied by 4 allies 12778 | -5/Proximity Caves | Spotter reported a threat 12787 | -5/Proximity Caves | Spotter reported a threat 12835 | -5/Proximity Caves | Spotted B-75 Beast 12857 | -5/Proximity Caves | Spotter reported a threat 12875 | -5/Proximity Caves | Discovered new exit (range 6) 12877 | -5/Proximity Caves | Identified exit to Factory 12910 | -5/Proximity Caves | Spotter reported a threat 12968 | -5/Proximity Caves | Entered Factory 12968 | -5/Factory | Accompanied by 2 allies 12968 | -5/Factory | Evolved 2 slots: Propulsion x1, Utility x1 12970 | -5/Factory | Loaded intel: 98 trap records 12972 | -5/Factory | Loaded intel: 3 garrison access locations 13143 | -5/Factory | Central database locked down 13190 | -5/Factory | Retrieved Zion intel report: Active Terminals 13268 | -5/Factory | Search patrols dispatched 13338 | -5/Factory | Retrieved Zion intel report: Component Schematics 13339 | -5/Factory | Zion Demo squad teleported in 13359 | -5/Factory | Fabricated Enh. Armored Medium Treads? 13438 | -5/Factory | Discovered new exit (range 16) 13475 | -5/Factory | Spotted B-75 Beast 13489 | -5/Factory | Identified exit to Upper Caves 13493 | -5/Factory | Entered Upper Caves 13494 | -5/Upper Caves | Encountered a Warlord checkpoint 13607 | -5/Upper Caves | Build established: Mutant 13658 | -5/Upper Caves | Learned Factory terminal intel 13685 | -5/Upper Caves | Attracted the attention of an 0b10 outpost 13773 | -5/Upper Caves | Discovered new exit (range 15) 13777 | -5/Upper Caves | Identified exit to Upper Caves 13777 | -5/Upper Caves | Entered another Upper Caves area 13777 | -5/Upper Caves | Discovered new exit (range 10) 13790 | -5/Upper Caves | Entered a destroyed Warlord outpost 13802 | -5/Upper Caves | Lost 4 parts (1p2n1u) 13977 | -5/Upper Caves | Identified exit to Factory 13978 | -5/Upper Caves | Entered Factory 13978 | -4/Factory | Evolved 2 slots: Utility x1, Weapon x1 13979 | -4/Factory | Loaded intel: 27 terminal locations 14336 | -4/Factory | Found Quantum Capacitor 14712 | -4/Factory | Discovered new exit (range 15) 14730 | -4/Factory | Identified exit to Extension 14731 | -4/Factory | Entered Extension 14734 | -4/Extension | Lost 3 parts (2u1w) 14810 | -4/Extension | Spotted B-86 Titan 14995 | -4/Extension | Zion Light squad teleported in 15031 | -4/Extension | Lost 6 parts (3n2u1w) 15036 | -4/Extension | Energy Cycler disabled 15036 | -4/Extension | Rescued a captive Derelict 15036 | -4/Extension | Rescued a captive Derelict 15037 | -4/Extension | Rescued a captive Derelict 15037 | -4/Extension | Rescued a captive Derelict 15039 | -4/Extension | Rescued a captive Derelict 15041 | -4/Extension | Rescued a captive Derelict 15054 | -4/Extension | Rescued a captive Derelict 15068 | -4/Extension | Rescued a captive Derelict 15094 | -4/Extension | Lost 3 allies 15198 | -4/Extension | P-70 Sage assimilated allied JA-3RC(b) 15232 | -4/Extension | Lost 3 allies 15243 | -4/Extension | Discovered new exit (range 19) 15243 | -4/Extension | Spotted B-86 Titan 15249 | -4/Extension | Core integrity fell below 50% 15251 | -4/Extension | Identified exit to Research 15252 | -4/Extension | Entered Research 15252 | -3/Research | Evolved 2 slots: Utility x2 15282 | -3/Research | Lost 7 parts (5n2u) 15635 | -3/Research | Build established: Assassin 15647 | -3/Research | Spotted B-86 Titan 15888 | -3/Research | Found Hvy. Reactive Plating 16025 | -3/Research | System corruption reached 10% 16177 | -3/Research | Zion Thermal Resupply teleported in 16260 | -3/Research | Found Prototype Processor 16260 | -3/Research | Identified Exp. Target Analyzer 16480 | -3/Research | Build established: Scavenger-Tank 16809 | -3/Research | Terminal network hard line cut 16979 | -3/Research | Lost 3 parts (2n1u) 17044 | -3/Research | Garrison activated, responded to threat 17142 | -3/Research | Core integrity fell below 50% 17158 | -3/Research | Core integrity fell below 20% 17186 | -3/Research | Lost 23 parts (3p13n3u4w) 17236 | -3/Research | Found Prototype Device 17236 | -3/Research | Identified Exp. EM Disruption Field 17292 | -3/Research | Destroyed by H-77 Assassin with High-powered Shotgun Last Messages --------------- 17282_ Slug penetrates Wall. 17282_ Penetrated by Slug. 17285_ HV Slug penetrates Wall. 17285_ Penetrated by Slug. 17286_ Exp. EM Disruption Field destroyed. 17287_ System corrupted: Matter fused (-10). 17289_ Slug penetrates Wall. 17289_ Critical hit (Destroy). 17289_ Hyp. Coil Gun destroyed. 17289_ Slug penetrates H-77 Assassin. 17289_ Hyp. Coil Gun destroyed. 17289_ Med. Treads destroyed. 17290_ Dropped Hyp. Coil Gun. 17291_ Acquired Arm. Medium Treads. 17292_ Penetrated by Slug. 17292_ Adv. Sensor Array destroyed. 17292_ Slug penetrates Wall. 17292_ Slug penetrates H-77 Assassin. 17292_ Slug penetrates S-43 Plague. 17292_ Slug penetrates Wall. Map ----- +----------------------------------------------------+ | | | | | | | | | | | | | | | | | | | | | | | | | | | | | | | | | | | ?????????????????????????????????????????????????? | | ?????????????????????????????????????????????????? | | ###################################??????????????? | | #??????????????? | | ^^ #??????????????? | | t^h^ #??????????????? | | !! h == #??????????????? | | ###### ! ### =! ####??????????????? | | ?????# #?# @ #?????????????????? | | ###### #?# [ #?????????????????? | | #?# ! +?????????????????? | | #?# [ #?????????????????? | | #?# =% #?????????????????? | | ! #?# ss #?????????????????? | | ############### ##?######## #?????????????????? | | ??????????????# #??????????s s #?????????????????? | | ??????????????# #?????????? #?????????????????? | | ??????????????# #?????????? w #?????????????????? | | ??????????????# #?????????? #?????????????????? | | ??????????????+ #?????????? #?????????????????? | | ??????????????# #?????????? #?????????????????? | | ??????????????? #?????????? #?????????????????? | | ?????????????? ???????????? #?????????????????? | | #??????????????????????????? #?????????????????? | | ???????????????????????????? #?????????????????? | | ???????????????????????????? #?????????????????? | | ???????????????????????????? #?????????????????? | | ????????????????????????????? #?????????????????? | | ?????????????????????????????###?????????????????? | | ?????????????????????????????????????????????????? | | ?????????????????????????????????????????????????? | | ?????????????????????????????????????????????????? | | ?????????????????????????????????????????????????? | +----------------------------------------------------+ Best States ------------- Heat Dissipation 122 Coolant Potential 100 Energy Generation 33 Energy Capacity 915 Matter Stores 300 Matter Capacity 300 Sight Range 22 Robot Scan Range 16 Terrain Scan Range 16 Terrain Scan Density 210 Jamming Range 16 Cloak Strength 3 Armor Coverage 600 Resistance: KI 40 Weapon Cycling 15 Evasion (%) 63 Targeting Accuracy 8 Core Analysis 6 Recoil Reduction 6 Energy Filtering 30 Particle Charging 25 Offensive Hacking 20 Defensive Hacking 12 Item Schematics ----------------- Imp. Flight Unit | -9/Materials | Scanalyzed Adv. Treads | -6/Factory | Hacked Flexi-carbon Leg | -5/Factory | Z-intel Cloaking Device | -5/Factory | Z-intel Power Amplifier | -5/Factory | Z-intel Adv. Targeting Computer | -5/Factory | Z-intel Hammer | -5/Factory | Z-intel Imp. Remote Datajack | -5/Factory | Z-intel Thermic Laser | -5/Factory | Z-intel Force Field | -5/Factory | Z-intel Nuclear Pulse Array | -5/Factory | Z-intel Maul | -5/Factory | Z-intel Adv. Plasma Cannon | -5/Factory | Z-intel Disruptor Cannon | -5/Factory | Z-intel Launcher Guidance Computer | -5/Factory | Z-intel Adv. Signal Interpreter | -5/Factory | Z-intel Hcp. Matter Pod | -5/Factory | Z-intel Imp. Shield Generator | -5/Factory | Z-intel Robot Schematics ------------------ None Fabricated ------------ Enh. Armored Medium Treads | x1 | -5/Factory | Preloaded Repaired ---------- Lgt. Treads | 36% | -8/Materials Studied --------- Wheel | -9/Materials | Hacked Com. Wheel | -9/Materials | Hacked Lgt. Treads | -9/Materials | Hacked Imp. Treads | -9/Materials | Hacked Imp. Ion Engine | -9/Materials | Hacked Rocket Launcher | -8/Materials | Hacked Arm. Wheel | -7/Factory | Hacked Mic. Nuclear Core | -7/Factory | Hacked Lgt. Fission Core | -5/Factory | Hacked Alien Tech Used ----------------- None Achievements -------------- Hydra Suspicious Challenges ------------ None Game ------ Seed ConceptComponentTurretformer Manual? 0 Play Time 05:07:03 Cumulative 104.0 hours Start 2025.12.04 @ 03:14:02 End 2025.12.05 @ 12:06:00 Sessions 5 Manual Loads 0 Difficulty Rogue Special Mode None Game No. 89 Rogue 89 Adventurer 0 Explorer 0 Win Type - Total 1 Types 1/0/0/0/0/0/0/0/0/0 Lore% 38 Gallery% 44 Achievement% 36 Wizard Run 0 Options --------- Layout 2 ASCII 0 Keyboard 0 Movement Mouse Keybinds 0 Fullscreen 2 Font 24/Terminus Map View 50x44 Zoom Use 0% Tactical HUD 1 Map Filters NONE Filters NONE Steam 1 RUN: 7a696ed5-d484-4e30-b7ae-f6257caa350e